[Event "Titled Tuesday Blitz September 28 2021"]
[White "Jobava, Baadur"]
[Black "Demin, Vladimir"]
[WhiteFideId "13601520"]
[BlackFideId "4167457"]
[WhiteElo "2731"]
[BlackElo "2536"]
[Result "1-0"]
[Round "09"]
[TimeControl "180+1"]
[Date "2021.09.28"]
[WhiteClock "0:01:16"]
[BlackClock "0:00:12"]

1. e4 {[%clk 0:03:00]}  Nf6 {[%clk 0:03:00]} 2. e5 {[%clk 0:03:00]}  Nd5 {[%clk 0:03:00]} 3. Nc3 {[%clk 0:03:01]}  Nxc3 {[%clk 0:03:00]} 4. dxc3 {[%clk 0:03:02]}  d6 {[%clk 0:03:00]} 5. exd6 {[%clk 0:03:03]}  cxd6 {[%clk 0:03:00]} 6. Be3 {[%clk 0:03:01]}  Nc6 {[%clk 0:03:00]} 7. Qd2 {[%clk 0:03:02]}  Qa5 {[%clk 0:02:49]} 8. Nf3 {[%clk 0:03:01]}  Bg4 {[%clk 0:02:44]} 9. Be2 {[%clk 0:03:01]}  g6 {[%clk 0:02:40]} 10. h3 {[%clk 0:03:00]}  Bd7 {[%clk 0:02:30]} 11. a3 {[%clk 0:03:00]}  Bg7 {[%clk 0:02:29]} 12. O-O-O {[%clk 0:03:00]}  a6 {[%clk 0:02:06]} 13. Bh6 {[%clk 0:02:56]}  Bxh6 {[%clk 0:01:58]} 14. Qxh6 {[%clk 0:02:57]}  O-O-O {[%clk 0:01:56]} 15. Rhe1 {[%clk 0:02:57]}  f6 {[%clk 0:01:47]} 16. Nd4 {[%clk 0:02:46]}  e5 {[%clk 0:01:41]} 17. Nb3 {[%clk 0:02:26]}  Qc7 {[%clk 0:01:41]} 18. Qg7 {[%clk 0:02:21]}  f5 {[%clk 0:01:24]} 19. Bc4 {[%clk 0:02:17]}  e4 {[%clk 0:01:13]} 20. Bd5 {[%clk 0:02:15]}  Ne5 {[%clk 0:01:11]} 21. Nd4 {[%clk 0:02:13]}  Kb8 {[%clk 0:01:07]} 22. f3 {[%clk 0:02:07]}  exf3 {[%clk 0:01:01]} 23. Nxf3 {[%clk 0:02:07]}  Nxf3 {[%clk 0:00:57]} 24. Bxf3 {[%clk 0:02:08]}  Bc6 {[%clk 0:00:54]} 25. Re7 {[%clk 0:02:08]}  Qb6 {[%clk 0:00:49]} 26. Kb1 {[%clk 0:01:57]}  Bxf3 {[%clk 0:00:48]} 27. gxf3 {[%clk 0:01:58]}  Qc6 {[%clk 0:00:44]} 28. Rd3 {[%clk 0:01:55]}  d5 {[%clk 0:00:34]} 29. Rde3 {[%clk 0:01:51]}  Ka8 {[%clk 0:00:28]} 30. b3 {[%clk 0:01:36]}  Rdg8 {[%clk 0:00:25]} 31. Qd4 {[%clk 0:01:33]}  Rc8 {[%clk 0:00:22]} 32. Kb2 {[%clk 0:01:32]}  Rhd8 {[%clk 0:00:21]} 33. a4 {[%clk 0:01:32]}  h5 {[%clk 0:00:20]} 34. h4 {[%clk 0:01:31]}  Rd6 {[%clk 0:00:20]} 35. f4 {[%clk 0:01:30]}  Qc5 {[%clk 0:00:20]} 36. Rg7 {[%clk 0:01:23]}  Ka7 {[%clk 0:00:17]} 37. Ree7 {[%clk 0:01:20]}  Rb6 {[%clk 0:00:14]} 38. a5 {[%clk 0:01:20]}  Qxd4 {[%clk 0:00:13]} 39. cxd4 {[%clk 0:01:19]}  Rb5 {[%clk 0:00:12]} 40. Rxg6 {[%clk 0:01:19]}  Rxa5 {[%clk 0:00:12]} 41. Rg5 {[%clk 0:01:19]}  Rb5 {[%clk 0:00:12]} 42. Rxf5 {[%clk 0:01:19]}  Rb6 {[%clk 0:00:12]} 43. Rxd5 {[%clk 0:01:19]}  Rf6 {[%clk 0:00:12]} 44. f5 {[%clk 0:01:18]}  Kb6 {[%clk 0:00:12]} 45. Re6+ {[%clk 0:01:17]}  Rxe6 {[%clk 0:00:12]} 46. fxe6 {[%clk 0:01:18]}  Re8 {[%clk 0:00:13]} 47. Rd6+ {[%clk 0:01:17]}  Kc7 {[%clk 0:00:13]} 48. Rd7+ {[%clk 0:01:17]}  Kc6 {[%clk 0:00:13]} 49. d5+ {[%clk 0:01:18]}  Kc5 {[%clk 0:00:13]} 50. c4 {[%clk 0:01:17]}  b5 {[%clk 0:00:13]} 51. Kc3 {[%clk 0:01:17]}  a5 {[%clk 0:00:12]} 52. Rc7+ {[%clk 0:01:16]} 1-0


[Site "https://www.chess.com"]

[Event "Titled Tuesday Blitz September 28 2021"]
[White "Kanyamarala, Tarun"]
[Black "Shahade, Gregory"]
[WhiteFideId "45004714"]
[BlackFideId "2009064"]
[WhiteElo "2077"]
[BlackElo "2558"]
[Result "1-0"]
[Round "09"]
[TimeControl "180+1"]
[Date "2021.09.28"]
[WhiteClock "0:00:29"]
[BlackClock "0:00:06"]

1. d4 {[%clk 0:03:00]}  Nf6 {[%clk 0:02:47]} 2. c4 {[%clk 0:03:00]}  g6 {[%clk 0:02:47]} 3. Nc3 {[%clk 0:02:59]}  d5 {[%clk 0:02:47]} 4. cxd5 {[%clk 0:02:57]}  Nxd5 {[%clk 0:02:47]} 5. e4 {[%clk 0:02:58]}  Nxc3 {[%clk 0:02:48]} 6. bxc3 {[%clk 0:02:58]}  Bg7 {[%clk 0:02:48]} 7. Nf3 {[%clk 0:02:59]}  c5 {[%clk 0:02:45]} 8. Be3 {[%clk 0:02:59]}  Bg4 {[%clk 0:02:43]} 9. Qa4+ {[%clk 0:02:58]}  Nc6 {[%clk 0:02:38]} 10. Rd1 {[%clk 0:02:55]}  O-O {[%clk 0:02:27]} 11. d5 {[%clk 0:02:54]}  Bxc3+ {[%clk 0:02:20]} 12. Bd2 {[%clk 0:02:54]}  Bxf3 {[%clk 0:01:50]} 13. Bxc3 {[%clk 0:02:28]}  Bxd1 {[%clk 0:01:46]} 14. Qxd1 {[%clk 0:02:27]}  Nd4 {[%clk 0:01:41]} 15. Bd3 {[%clk 0:02:28]}  e5 {[%clk 0:01:37]} 16. dxe6 {[%clk 0:02:25]}  fxe6 {[%clk 0:01:30]} 17. a4 {[%clk 0:02:22]}  Qf6 {[%clk 0:01:19]} 18. Qd2 {[%clk 0:02:22]}  Rad8 {[%clk 0:01:15]} 19. O-O {[%clk 0:02:19]}  c4 {[%clk 0:00:50]} 20. Bxc4 {[%clk 0:02:10]}  Nf3+ {[%clk 0:00:38]} 21. gxf3 {[%clk 0:02:10]}  Rxd2 {[%clk 0:00:38]} 22. Bxf6 {[%clk 0:02:10]}  Rxf6 {[%clk 0:00:39]} 23. e5 {[%clk 0:02:10]}  Rxf3 {[%clk 0:00:36]} 24. Bxe6+ {[%clk 0:02:10]}  Kf8 {[%clk 0:00:36]} 25. Bg4 {[%clk 0:01:57]}  Rf4 {[%clk 0:00:33]} 26. h3 {[%clk 0:01:55]}  h5 {[%clk 0:00:33]} 27. Bc8 {[%clk 0:01:52]}  b6 {[%clk 0:00:31]} 28. e6 {[%clk 0:01:52]}  Ke7 {[%clk 0:00:30]} 29. Rc1 {[%clk 0:01:51]}  Rfxf2 {[%clk 0:00:26]} 30. Rc7+ {[%clk 0:01:47]}  Kd6 {[%clk 0:00:10]} 31. Rd7+ {[%clk 0:01:35]}  Kc6 {[%clk 0:00:09]} 32. Bb7+ {[%clk 0:01:05]}  Kc5 {[%clk 0:00:09]} 33. e7 {[%clk 0:01:02]}  Rxd7 {[%clk 0:00:09]} 34. e8=Q {[%clk 0:01:00]}  Rfd2 {[%clk 0:00:10]} 35. Qe5+ {[%clk 0:00:49]}  Kb4 {[%clk 0:00:10]} 36. Bf3 {[%clk 0:00:46]}  h4 {[%clk 0:00:09]} 37. Qb5+ {[%clk 0:00:43]}  Ka3 {[%clk 0:00:10]} 38. a5 {[%clk 0:00:38]}  bxa5 {[%clk 0:00:08]} 39. Qxa5+ {[%clk 0:00:37]}  Kb2 {[%clk 0:00:09]} 40. Qb4+ {[%clk 0:00:37]}  Kc1 {[%clk 0:00:09]} 41. Qxh4 {[%clk 0:00:36]}  R2d4 {[%clk 0:00:08]} 42. Qg5+ {[%clk 0:00:36]}  Kb2 {[%clk 0:00:09]} 43. Qxg6 {[%clk 0:00:35]}  a5 {[%clk 0:00:09]} 44. Qb6+ {[%clk 0:00:35]}  Kc2 {[%clk 0:00:10]} 45. Qxa5 {[%clk 0:00:34]}  Rd3 {[%clk 0:00:11]} 46. Be4 {[%clk 0:00:33]}  Rg7+ {[%clk 0:00:10]} 47. Kf2 {[%clk 0:00:33]}  Rf7+ {[%clk 0:00:11]} 48. Kg2 {[%clk 0:00:32]}  Rg7+ {[%clk 0:00:09]} 49. Kh2 {[%clk 0:00:32]}  Kb3 {[%clk 0:00:07]} 50. Qb5+ {[%clk 0:00:30]}  Ka3 {[%clk 0:00:06]} 51. Qxd3+ {[%clk 0:00:29]} 1-0


[Site "https://www.chess.com"]

[Event "Titled Tuesday Blitz September 28 2021"]
[White "Kucuksari, Kaan"]
[Black "Tristan, Leonardo"]
[WhiteFideId "6380166"]
[BlackFideId "113816"]
[WhiteElo "2301"]
[BlackElo "2404"]
[Result "0-1"]
[Round "09"]
[TimeControl "180+1"]
[Date "2021.09.28"]
[WhiteClock "0:00:03"]
[BlackClock "0:00:08"]

1. d4 {[%clk 0:02:37]}  d5 {[%clk 0:03:00]} 2. c4 {[%clk 0:02:38]}  e6 {[%clk 0:03:00]} 3. Nf3 {[%clk 0:02:38]}  Nf6 {[%clk 0:03:00]} 4. g3 {[%clk 0:02:39]}  Be7 {[%clk 0:03:00]} 5. Bg2 {[%clk 0:02:40]}  O-O {[%clk 0:03:01]} 6. O-O {[%clk 0:02:40]}  dxc4 {[%clk 0:03:01]} 7. Qc2 {[%clk 0:02:41]}  a6 {[%clk 0:03:01]} 8. Qxc4 {[%clk 0:02:41]}  b5 {[%clk 0:03:02]} 9. Qc2 {[%clk 0:02:41]}  Bb7 {[%clk 0:03:02]} 10. Bd2 {[%clk 0:02:42]}  Be4 {[%clk 0:03:01]} 11. Qc1 {[%clk 0:02:43]}  c6 {[%clk 0:03:02]} 12. Rd1 {[%clk 0:02:41]}  Nbd7 {[%clk 0:03:02]} 13. Nc3 {[%clk 0:02:38]}  Bg6 {[%clk 0:03:02]} 14. a3 {[%clk 0:02:37]}  Rc8 {[%clk 0:03:00]} 15. b4 {[%clk 0:02:37]}  Nd5 {[%clk 0:02:51]} 16. Nh4 {[%clk 0:02:33]}  Bxh4 {[%clk 0:02:51]} 17. gxh4 {[%clk 0:02:30]}  Qxh4 {[%clk 0:02:51]} 18. Bg5 {[%clk 0:01:46]}  Qg4 {[%clk 0:02:43]} 19. Ne4 {[%clk 0:01:26]}  Bxe4 {[%clk 0:02:17]} 20. f3 {[%clk 0:01:27]}  Bxf3 {[%clk 0:02:13]} 21. exf3 {[%clk 0:01:27]}  Qf5 {[%clk 0:02:12]} 22. Ra2 {[%clk 0:01:20]}  e5 {[%clk 0:02:01]} 23. Rf2 {[%clk 0:01:12]}  exd4 {[%clk 0:01:59]} 24. Rxd4 {[%clk 0:01:13]}  c5 {[%clk 0:01:57]} 25. bxc5 {[%clk 0:01:05]}  Nxc5 {[%clk 0:01:41]} 26. Rg4 {[%clk 0:00:30]}  Nd3 {[%clk 0:01:27]} 27. Qa1 {[%clk 0:00:31]}  f6 {[%clk 0:00:49]} 28. Bh6 {[%clk 0:00:26]}  Nxf2 {[%clk 0:00:42]} 29. Rxg7+ {[%clk 0:00:21]}  Kh8 {[%clk 0:00:42]} 30. Kxf2 {[%clk 0:00:20]}  Rc2+ {[%clk 0:00:36]} 31. Kg1 {[%clk 0:00:20]}  Nf4 {[%clk 0:00:21]} 32. Bf1 {[%clk 0:00:13]}  Rg8 {[%clk 0:00:13]} 33. Rxg8+ {[%clk 0:00:11]}  Kxg8 {[%clk 0:00:14]} 34. Qd4 {[%clk 0:00:12]}  Qg6+ {[%clk 0:00:12]} 35. Kh1 {[%clk 0:00:10]}  Qxh6 {[%clk 0:00:12]} 36. Qd8+ {[%clk 0:00:11]}  Kg7 {[%clk 0:00:12]} 37. Qe7+ {[%clk 0:00:11]}  Kg8 {[%clk 0:00:11]} 38. Qe8+ {[%clk 0:00:05]}  Qf8 {[%clk 0:00:11]} 39. Qe4 {[%clk 0:00:05]}  Rc1 {[%clk 0:00:08]} 40. Qxf4 {[%clk 0:00:03]}  Rxf1+ {[%clk 0:00:08]} 41. Kg2 {[%clk 0:00:04]}  Ra1 {[%clk 0:00:07]} 42. Qd4 {[%clk 0:00:03]}  Rxa3 {[%clk 0:00:06]} 43. Qd5+ {[%clk 0:00:03]}  Kh8 {[%clk 0:00:06]} 44. Qf5 {[%clk 0:00:02]}  Rc3 {[%clk 0:00:06]} 45. Qe6 {[%clk 0:00:02]}  Rc2+ {[%clk 0:00:06]} 46. Kh1 {[%clk 0:00:02]}  Rc5 {[%clk 0:00:07]} 47. Qe4 {[%clk 0:00:02]}  Re5 {[%clk 0:00:07]} 48. Qd3 {[%clk 0:00:03]}  Re7 {[%clk 0:00:07]} 49. Qd4 {[%clk 0:00:03]}  Re8 {[%clk 0:00:08]} 0-1


[Site "https://www.chess.com"]

[Event "Titled Tuesday Blitz September 28 2021"]
[White "Le, Tuan Minh"]
[Black "Lazavik, Denis"]
[WhiteFideId "12401153"]
[BlackFideId "13515110"]
[WhiteElo "2914"]
[BlackElo "2809"]
[Result "1/2-1/2"]
[Round "09"]
[TimeControl "180+1"]
[Date "2021.09.28"]
[WhiteClock "0:00:14"]
[BlackClock "0:00:07"]

1. d4 {[%clk 0:03:00]}  d5 {[%clk 0:02:58]} 2. Nf3 {[%clk 0:03:01]}  Nf6 {[%clk 0:02:59]} 3. Bf4 {[%clk 0:03:02]}  e6 {[%clk 0:02:59]} 4. e3 {[%clk 0:03:02]}  Bd6 {[%clk 0:02:59]} 5. Bg3 {[%clk 0:03:02]}  O-O {[%clk 0:02:59]} 6. c4 {[%clk 0:03:03]}  b6 {[%clk 0:02:50]} 7. Nc3 {[%clk 0:03:03]}  Bb7 {[%clk 0:02:49]} 8. Rc1 {[%clk 0:03:03]}  a6 {[%clk 0:02:47]} 9. cxd5 {[%clk 0:03:01]}  exd5 {[%clk 0:02:46]} 10. Bd3 {[%clk 0:03:01]}  Re8 {[%clk 0:02:41]} 11. Ne5 {[%clk 0:02:48]}  c5 {[%clk 0:02:26]} 12. O-O {[%clk 0:02:46]}  Nc6 {[%clk 0:02:17]} 13. f4 {[%clk 0:01:18]}  cxd4 {[%clk 0:02:13]} 14. Nxd5 {[%clk 0:01:12]}  Bxe5 {[%clk 0:01:14]} 15. fxe5 {[%clk 0:01:11]}  Qxd5 {[%clk 0:01:14]} 16. exf6 {[%clk 0:01:00]}  g6 {[%clk 0:00:38]} 17. e4 {[%clk 0:00:59]}  Qg5 {[%clk 0:00:34]} 18. Bf4 {[%clk 0:00:22]}  Qxf6 {[%clk 0:00:32]} 19. Qd2 {[%clk 0:00:23]}  Ne5 {[%clk 0:00:29]} 20. Rc7 {[%clk 0:00:13]}  Nxd3 {[%clk 0:00:26]} 21. Rxb7 {[%clk 0:00:12]}  Nc5 {[%clk 0:00:21]} 22. Rc7 {[%clk 0:00:04]}  Nxe4 {[%clk 0:00:20]} 23. Qb4 {[%clk 0:00:05]}  Rac8 {[%clk 0:00:09]} 24. Qc4 {[%clk 0:00:02]}  Rxc7 {[%clk 0:00:08]} 25. Qxc7 {[%clk 0:00:03]}  d3 {[%clk 0:00:08]} 26. Be3 {[%clk 0:00:03]}  Qe6 {[%clk 0:00:07]} 27. Rd1 {[%clk 0:00:02]}  d2 {[%clk 0:00:07]} 28. Qxb6 {[%clk 0:00:02]}  Qc4 {[%clk 0:00:04]} 29. Qb3 {[%clk 0:00:01]}  Qe2 {[%clk 0:00:04]} 30. h3 {[%clk 0:00:02]}  Rc8 {[%clk 0:00:03]} 31. Kh2 {[%clk 0:00:02]}  h5 {[%clk 0:00:03]} 32. Bd4 {[%clk 0:00:02]}  Rd8 {[%clk 0:00:02]} 33. Qf3 {[%clk 0:00:02]}  Qxf3 {[%clk 0:00:02]} 34. gxf3 {[%clk 0:00:03]}  Rxd4 {[%clk 0:00:02]} 35. fxe4 {[%clk 0:00:03]}  Rxe4 {[%clk 0:00:03]} 36. Rxd2 {[%clk 0:00:04]}  a5 {[%clk 0:00:04]} 37. Kg3 {[%clk 0:00:04]}  h4+ {[%clk 0:00:04]} 38. Kf3 {[%clk 0:00:05]}  Rb4 {[%clk 0:00:04]} 39. b3 {[%clk 0:00:05]}  a4 {[%clk 0:00:04]} 40. Rd3 {[%clk 0:00:06]}  axb3 {[%clk 0:00:04]} 41. Rxb3 {[%clk 0:00:07]}  Ra4 {[%clk 0:00:04]} 42. a3 {[%clk 0:00:07]}  Kg7 {[%clk 0:00:05]} 43. Kg2 {[%clk 0:00:06]}  g5 {[%clk 0:00:05]} 44. Kf3 {[%clk 0:00:06]}  Kg6 {[%clk 0:00:05]} 45. Kg2 {[%clk 0:00:06]}  f6 {[%clk 0:00:06]} 46. Kf3 {[%clk 0:00:06]}  Ra5 {[%clk 0:00:06]} 47. Kg2 {[%clk 0:00:06]}  Kf5 {[%clk 0:00:07]} 48. Kf3 {[%clk 0:00:06]}  Ra6 {[%clk 0:00:04]} 49. Rb5+ {[%clk 0:00:06]}  Kg6 {[%clk 0:00:04]} 50. Rb3 {[%clk 0:00:06]}  f5 {[%clk 0:00:04]} 51. Rc3 {[%clk 0:00:06]}  Kh5 {[%clk 0:00:04]} 52. Kg2 {[%clk 0:00:06]}  Ra4 {[%clk 0:00:04]} 53. Rc5 {[%clk 0:00:05]}  Kg6 {[%clk 0:00:02]} 54. Rc6+ {[%clk 0:00:06]}  Kh5 {[%clk 0:00:02]} 55. Rc5 {[%clk 0:00:06]}  f4 {[%clk 0:00:02]} 56. Rc3 {[%clk 0:00:06]}  Ra5 {[%clk 0:00:03]} 57. Kf3 {[%clk 0:00:07]}  Kg6 {[%clk 0:00:02]} 58. Rb3 {[%clk 0:00:06]}  Kf5 {[%clk 0:00:02]} 59. Rc3 {[%clk 0:00:06]}  Ra6 {[%clk 0:00:01]} 60. Rb3 {[%clk 0:00:07]}  Kg6 {[%clk 0:00:02]} 61. Rc3 {[%clk 0:00:07]}  Kh5 {[%clk 0:00:02]} 62. Rb3 {[%clk 0:00:07]}  Re6 {[%clk 0:00:02]} 63. a4 {[%clk 0:00:08]}  Ra6 {[%clk 0:00:02]} 64. Ra3 {[%clk 0:00:08]}  Ra5 {[%clk 0:00:03]} 65. Ra1 {[%clk 0:00:08]}  Kg6 {[%clk 0:00:03]} 66. Ra2 {[%clk 0:00:09]}  Kf5 {[%clk 0:00:03]} 67. Ra1 {[%clk 0:00:09]}  Re5 {[%clk 0:00:03]} 68. a5 {[%clk 0:00:09]}  Re3+ {[%clk 0:00:04]} 69. Kg2 {[%clk 0:00:10]}  g4 {[%clk 0:00:04]} 70. hxg4+ {[%clk 0:00:09]}  Kxg4 {[%clk 0:00:03]} 71. a6 {[%clk 0:00:10]}  h3+ {[%clk 0:00:04]} 72. Kf2 {[%clk 0:00:10]}  Re8 {[%clk 0:00:04]} 73. a7 {[%clk 0:00:10]}  Ra8 {[%clk 0:00:04]} 74. Ra3 {[%clk 0:00:10]}  h2 {[%clk 0:00:04]} 75. Kg2 {[%clk 0:00:11]}  f3+ {[%clk 0:00:04]} 76. Kxh2 {[%clk 0:00:11]}  Kf4 {[%clk 0:00:04]} 77. Kg1 {[%clk 0:00:11]}  Ke4 {[%clk 0:00:04]} 78. Kf2 {[%clk 0:00:12]}  Kd5 {[%clk 0:00:04]} 79. Kxf3 {[%clk 0:00:12]}  Kc6 {[%clk 0:00:05]} 80. Ke4 {[%clk 0:00:13]}  Kb7 {[%clk 0:00:06]} 81. Kd5 {[%clk 0:00:13]}  Rxa7 {[%clk 0:00:06]} 82. Rh3 {[%clk 0:00:14]}  Ra5+ {[%clk 0:00:06]} 83. Kd6 {[%clk 0:00:14]}  Ra6+ {[%clk 0:00:07]} 84. Kd7 {[%clk 0:00:14]}  Rb6 {[%clk 0:00:07]} 1/2-1/2


[Site "https://www.chess.com"]

[Event "Titled Tuesday Blitz September 28 2021"]
[White "Levitskiy, Andrey"]
[Black "Romanchuk, Viktor"]
[WhiteFideId "14132885"]
[BlackFideId "14109271"]
[WhiteElo "2340"]
[BlackElo "2242"]
[Result "0-1"]
[Round "09"]
[TimeControl "180+1"]
[Date "2021.09.28"]
[WhiteClock "0:00:03"]
[BlackClock "0:00:12"]

1. e4 {[%clk 0:03:00]}  e6 {[%clk 0:02:59]} 2. d4 {[%clk 0:03:00]}  d5 {[%clk 0:02:59]} 3. Bd3 {[%clk 0:03:01]}  c5 {[%clk 0:02:58]} 4. exd5 {[%clk 0:03:00]}  exd5 {[%clk 0:02:59]} 5. Nf3 {[%clk 0:03:00]}  c4 {[%clk 0:02:58]} 6. Be2 {[%clk 0:03:00]}  Bd6 {[%clk 0:02:58]} 7. O-O {[%clk 0:03:00]}  Nf6 {[%clk 0:02:59]} 8. b3 {[%clk 0:02:59]}  cxb3 {[%clk 0:02:58]} 9. axb3 {[%clk 0:03:00]}  h6 {[%clk 0:02:56]} 10. c4 {[%clk 0:02:59]}  O-O {[%clk 0:02:56]} 11. Nc3 {[%clk 0:02:55]}  Nc6 {[%clk 0:02:53]} 12. c5 {[%clk 0:02:42]}  Bb8 {[%clk 0:02:51]} 13. Re1 {[%clk 0:01:44]}  Bf5 {[%clk 0:02:43]} 14. Bd3 {[%clk 0:01:43]}  Qd7 {[%clk 0:02:37]} 15. Ne5 {[%clk 0:01:28]}  Qc8 {[%clk 0:02:22]} 16. Nxc6 {[%clk 0:01:21]}  bxc6 {[%clk 0:02:20]} 17. g3 {[%clk 0:00:56]}  Bxd3 {[%clk 0:02:07]} 18. Qxd3 {[%clk 0:00:57]}  Qh3 {[%clk 0:02:07]} 19. Qf1 {[%clk 0:00:42]}  Qg4 {[%clk 0:02:03]} 20. Be3 {[%clk 0:00:42]}  a5 {[%clk 0:01:58]} 21. b4 {[%clk 0:00:40]}  axb4 {[%clk 0:01:38]} 22. Rxa8 {[%clk 0:00:39]}  bxc3 {[%clk 0:01:38]} 23. Rc1 {[%clk 0:00:26]}  Kh7 {[%clk 0:01:19]} 24. f3 {[%clk 0:00:25]}  Qg6 {[%clk 0:01:14]} 25. Qg2 {[%clk 0:00:20]}  Bf4 {[%clk 0:01:06]} 26. Rxf8 {[%clk 0:00:14]}  Bxe3+ {[%clk 0:01:04]} 27. Kf1 {[%clk 0:00:11]}  Bxc1 {[%clk 0:01:04]} 28. Rb8 {[%clk 0:00:09]}  Bd2 {[%clk 0:00:53]} 29. Qe2 {[%clk 0:00:07]}  Qc2 {[%clk 0:00:50]} 30. Kg2 {[%clk 0:00:04]}  h5 {[%clk 0:00:48]} 31. h4 {[%clk 0:00:03]}  Qf5 {[%clk 0:00:45]} 32. Rb3 {[%clk 0:00:01]}  Qc2 {[%clk 0:00:38]} 33. Rb7 {[%clk 0:00:02]}  Kg6 {[%clk 0:00:33]} 34. Rc7 {[%clk 0:00:02]}  Kh7 {[%clk 0:00:25]} 35. Rxc6 {[%clk 0:00:02]}  Qa4 {[%clk 0:00:22]} 36. Rc7 {[%clk 0:00:02]}  Qxd4 {[%clk 0:00:22]} 37. Rxf7 {[%clk 0:00:01]}  c2 {[%clk 0:00:20]} 38. Qe7 {[%clk 0:00:02]}  Bh6 {[%clk 0:00:19]} 39. Rxg7+ {[%clk 0:00:02]}  Bxg7 {[%clk 0:00:19]} 40. Qe1 {[%clk 0:00:02]}  Qd1 {[%clk 0:00:16]} 41. Qe6 {[%clk 0:00:02]}  Qd2+ {[%clk 0:00:16]} 42. Kh3 {[%clk 0:00:03]}  c1=Q {[%clk 0:00:16]} 43. Qf5+ {[%clk 0:00:03]}  Kh8 {[%clk 0:00:16]} 44. Qc8+ {[%clk 0:00:03]}  Ng8 {[%clk 0:00:16]} 45. Qf5 {[%clk 0:00:03]}  Qh1# {[%clk 0:00:12]} 0-1


[Site "https://www.chess.com"]

[Event "Titled Tuesday Blitz September 28 2021"]
[White "Manukian, Artak"]
[Black "Pandey Srishti"]
[WhiteFideId "13301373"]
[BlackFideId "35093290"]
[WhiteElo "2356"]
[BlackElo "1816"]
[Result "1-0"]
[Round "09"]
[TimeControl "180+1"]
[Date "2021.09.28"]
[WhiteClock "0:00:38"]
[BlackClock "0:00:24"]

1. e4 {[%clk 0:03:00]}  e5 {[%clk 0:02:56]} 2. Nf3 {[%clk 0:02:59]}  Nc6 {[%clk 0:02:55]} 3. d4 {[%clk 0:02:59]}  exd4 {[%clk 0:02:54]} 4. Nxd4 {[%clk 0:02:59]}  d6 {[%clk 0:02:51]} 5. Nxc6 {[%clk 0:02:59]}  bxc6 {[%clk 0:02:51]} 6. Bc4 {[%clk 0:03:00]}  Nf6 {[%clk 0:02:50]} 7. Nc3 {[%clk 0:03:00]}  Be7 {[%clk 0:02:49]} 8. O-O {[%clk 0:02:57]}  O-O {[%clk 0:02:49]} 9. Re1 {[%clk 0:02:54]}  Rb8 {[%clk 0:02:38]} 10. Be3 {[%clk 0:02:52]}  Rxb2 {[%clk 0:02:37]} 11. Bb3 {[%clk 0:02:52]}  d5 {[%clk 0:02:25]} 12. Bc1 {[%clk 0:02:46]}  Rxb3 {[%clk 0:02:18]} 13. axb3 {[%clk 0:02:45]}  Bb4 {[%clk 0:02:14]} 14. Bd2 {[%clk 0:02:41]}  Bxc3 {[%clk 0:02:14]} 15. Bxc3 {[%clk 0:02:41]}  Nxe4 {[%clk 0:02:13]} 16. Be5 {[%clk 0:02:31]}  Re8 {[%clk 0:02:05]} 17. Bg3 {[%clk 0:02:26]}  a6 {[%clk 0:02:00]} 18. f3 {[%clk 0:02:04]}  Nxg3 {[%clk 0:01:59]} 19. hxg3 {[%clk 0:01:59]}  h6 {[%clk 0:01:51]} 20. Rxe8+ {[%clk 0:01:55]}  Qxe8 {[%clk 0:01:52]} 21. Qe1 {[%clk 0:01:55]}  Qe6 {[%clk 0:01:36]} 22. Qxe6 {[%clk 0:01:54]}  fxe6 {[%clk 0:01:36]} 23. f4 {[%clk 0:01:49]}  Kf7 {[%clk 0:01:36]} 24. b4 {[%clk 0:01:45]}  Ke7 {[%clk 0:01:34]} 25. Kf2 {[%clk 0:01:42]}  Kd6 {[%clk 0:01:34]} 26. Ra5 {[%clk 0:01:39]}  g5 {[%clk 0:01:30]} 27. Ke3 {[%clk 0:01:38]}  e5 {[%clk 0:01:28]} 28. c3 {[%clk 0:01:35]}  Bb7 {[%clk 0:01:12]} 29. Rc5 {[%clk 0:01:34]}  exf4+ {[%clk 0:01:09]} 30. gxf4 {[%clk 0:01:34]}  gxf4+ {[%clk 0:01:09]} 31. Kxf4 {[%clk 0:01:34]}  Bc8 {[%clk 0:01:09]} 32. Ra5 {[%clk 0:01:31]}  Ke6 {[%clk 0:01:04]} 33. Ra1 {[%clk 0:01:30]}  Kd6 {[%clk 0:01:04]} 34. Rh1 {[%clk 0:01:29]}  d4 {[%clk 0:00:57]} 35. Rxh6+ {[%clk 0:01:24]}  Kd5 {[%clk 0:00:56]} 36. cxd4 {[%clk 0:01:24]}  Kxd4 {[%clk 0:00:56]} 37. g4 {[%clk 0:01:08]}  Kc4 {[%clk 0:00:47]} 38. Rxc6+ {[%clk 0:01:07]}  Kxb4 {[%clk 0:00:47]} 39. Rxc7 {[%clk 0:01:07]}  Be6 {[%clk 0:00:39]} 40. g5 {[%clk 0:01:07]}  a5 {[%clk 0:00:38]} 41. Ke5 {[%clk 0:00:42]}  Bg8 {[%clk 0:00:34]} 42. Kd4 {[%clk 0:00:42]}  a4 {[%clk 0:00:32]} 43. Rb7+ {[%clk 0:00:42]}  Ka3 {[%clk 0:00:33]} 44. Kc3 {[%clk 0:00:42]}  Ka2 {[%clk 0:00:32]} 45. Kb4 {[%clk 0:00:40]}  Bb3 {[%clk 0:00:29]} 46. Ra7 {[%clk 0:00:39]}  Kb2 {[%clk 0:00:26]} 47. Rxa4 {[%clk 0:00:38]}  Bxa4 {[%clk 0:00:24]} 48. Kxa4 {[%clk 0:00:38]} 1-0


[Site "https://www.chess.com"]

[Event "Titled Tuesday Blitz September 28 2021"]
[White "Martin Carmona, Gaston Manuel"]
[Black "Maltsevskaya, Aleksandra"]
[WhiteFideId "22284567"]
[BlackFideId "24174041"]
[WhiteElo "2161"]
[BlackElo "2239"]
[Result "0-1"]
[Round "09"]
[TimeControl "180+1"]
[Date "2021.09.28"]
[WhiteClock "0:00:06"]
[BlackClock "0:00:17"]

1. e4 {[%clk 0:03:00]}  c5 {[%clk 0:02:57]} 2. Nf3 {[%clk 0:03:00]}  e6 {[%clk 0:02:57]} 3. d4 {[%clk 0:03:00]}  cxd4 {[%clk 0:02:58]} 4. Nxd4 {[%clk 0:03:01]}  Nf6 {[%clk 0:02:58]} 5. Nc3 {[%clk 0:03:01]}  Nc6 {[%clk 0:02:58]} 6. Ndb5 {[%clk 0:02:58]}  Bc5 {[%clk 0:02:58]} 7. Bf4 {[%clk 0:02:28]}  O-O {[%clk 0:02:57]} 8. Bc7 {[%clk 0:02:01]}  Qe7 {[%clk 0:02:57]} 9. Bd6 {[%clk 0:02:02]}  Bxd6 {[%clk 0:02:57]} 10. Qxd6 {[%clk 0:02:03]}  Qd8 {[%clk 0:02:58]} 11. Qg3 {[%clk 0:01:50]}  Qb6 {[%clk 0:02:44]} 12. O-O-O {[%clk 0:01:48]}  a6 {[%clk 0:02:32]} 13. Nd6 {[%clk 0:01:47]}  Qc5 {[%clk 0:02:29]} 14. Bd3 {[%clk 0:01:31]}  b5 {[%clk 0:02:15]} 15. Kb1 {[%clk 0:01:29]}  Ne5 {[%clk 0:02:06]} 16. Nxc8 {[%clk 0:01:27]}  Raxc8 {[%clk 0:02:05]} 17. f4 {[%clk 0:01:26]}  Nxd3 {[%clk 0:02:05]} 18. Qxd3 {[%clk 0:01:26]}  b4 {[%clk 0:01:59]} 19. Ne2 {[%clk 0:01:26]}  d5 {[%clk 0:01:57]} 20. e5 {[%clk 0:01:26]}  Ne4 {[%clk 0:01:57]} 21. Nd4 {[%clk 0:01:15]}  Nf2 {[%clk 0:01:55]} 22. Qe3 {[%clk 0:01:12]}  Nxh1 {[%clk 0:01:54]} 23. Rxh1 {[%clk 0:01:13]}  a5 {[%clk 0:01:53]} 24. h4 {[%clk 0:01:12]}  a4 {[%clk 0:01:53]} 25. h5 {[%clk 0:01:12]}  b3 {[%clk 0:01:52]} 26. cxb3 {[%clk 0:01:03]}  axb3 {[%clk 0:01:53]} 27. axb3 {[%clk 0:00:59]}  h6 {[%clk 0:01:33]} 28. g4 {[%clk 0:00:59]}  Ra8 {[%clk 0:01:30]} 29. Rc1 {[%clk 0:00:54]}  Qa5 {[%clk 0:01:29]} 30. Rc3 {[%clk 0:00:53]}  Rfc8 {[%clk 0:01:20]} 31. Kc2 {[%clk 0:00:48]}  Rxc3+ {[%clk 0:01:17]} 32. Qxc3 {[%clk 0:00:48]}  Qa6 {[%clk 0:01:18]} 33. Qd3 {[%clk 0:00:43]}  Rc8+ {[%clk 0:01:17]} 34. Kd2 {[%clk 0:00:44]}  Qa1 {[%clk 0:01:14]} 35. b4 {[%clk 0:00:28]}  Qxb2+ {[%clk 0:01:13]} 36. Nc2 {[%clk 0:00:29]}  d4 {[%clk 0:01:13]} 37. g5 {[%clk 0:00:26]}  Rc3 {[%clk 0:01:12]} 38. Qe4 {[%clk 0:00:25]}  Rc8 {[%clk 0:00:21]} 39. g6 {[%clk 0:00:25]}  fxg6 {[%clk 0:00:18]} 40. Qxg6 {[%clk 0:00:25]}  Qc3+ {[%clk 0:00:16]} 41. Kd1 {[%clk 0:00:23]}  d3 {[%clk 0:00:17]} 42. Qxe6+ {[%clk 0:00:21]}  Kh8 {[%clk 0:00:17]} 43. Qxc8+ {[%clk 0:00:05]}  Qxc8 {[%clk 0:00:18]} 44. Nd4 {[%clk 0:00:05]}  Qc3 {[%clk 0:00:17]} 45. e6 {[%clk 0:00:06]} 0-1


[Site "https://www.chess.com"]